fUST/lending_fUST_20260202
["ID","MTS","AMOUNT","RATE_DAILY","PERIOD"]
[404205186,1769961609186,-168.7972843,9.825e-05,2]
[404205187,1769961609210,-327.88325505,9.825e-05,2]
[404205188,1769961611168,-152.48,9.825e-05,2]
[404205189,1769961638543,151.0,0.0003763,31]
[404205190,1769961638848,151.0,0.0003763,31]
[404205191,1769961639159,151.0,0.0003763,31]
[404205192,1769961639450,151.0,0.0003763,31]
[404205193,1769961639753,217.396031,0.0003763,31]
[404205195,1769961872237,-19.63674495,9.825e-05,2]
[404205196,1769961872259,-236.11697328,9.825e-05,2]
[404205197,1769961872280,-150.0,9.837e-05,2]
[404205198,1769961872303,-300.0,9.992e-05,2]
[404205199,1769961872325,-500.0,9.993e-05,2]
[404205200,1769961872345,-500.0,9.993e-05,2]
[404205201,1769961872365,-500.0,9.993e-05,2]
[404205202,1769961872384,-500.0,9.993e-05,2]
[404205203,1769961872404,-500.0,9.993e-05,2]
[404205204,1769961872423,-501.81777384,9.993e-05,2]
[404205205,1769961872444,-500.0,9.993e-05,2]
[404205206,1769961872463,-500.0,9.993e-05,2]
[404205207,1769961872579,-500.0,9.993e-05,2]
[404205208,1769961872602,-500.0,9.993e-05,2]
[404205209,1769961872624,-500.0,9.993e-05,2]
[404205210,1769961872643,-500.0,9.993e-05,2]
[404205211,1769961872664,-500.0,9.993e-05,2]
[404205212,1769961872684,-500.0,9.993e-05,2]
[404205213,1769961872704,-500.0,9.993e-05,2]
[404205214,1769961872726,-500.0,9.993e-05,2]
[404205215,1769961872745,-500.0,9.993e-05,2]
[404205216,1769961872766,-500.0,9.993e-05,2]
[404205217,1769961872786,-187.0595899,9.993e-05,2]
[404205218,1769961872806,-156.69376432,9.993e-05,2]
[404205219,1769961872828,-500.0,9.993e-05,2]
[404205220,1769961872849,-500.0,9.993e-05,2]
[404205221,1769961872871,-500.0,9.993e-05,2]
[404205222,1769961872894,-500.0,9.993e-05,2]
[404205223,1769961872915,-500.0,9.993e-05,2]
[404205224,1769961872938,-500.0,9.993e-05,2]
[404205225,1769961872959,-500.0,9.993e-05,2]
[404205226,1769961872980,-500.0,9.993e-05,2]
[404205227,1769961873002,-500.0,9.993e-05,2]
[404205228,1769961873025,-500.0,9.993e-05,2]
[404205229,1769961873048,-500.0,9.993e-05,2]
[404205230,1769961873074,-500.0,9.993e-05,2]
[404205231,1769961873096,-500.0,9.993e-05,2]
[404205232,1769961873116,-500.0,9.993e-05,2]
[404205233,1769961873137,-627.29725219,9.993e-05,2]
[404205234,1769961873160,-500.0,9.993e-05,2]
[404205235,1769961873181,-500.0,9.993e-05,2]
[404205236,1769961873202,-500.0,9.993e-05,2]
[404205237,1769961873223,-500.0,9.993e-05,2]
[404205238,1769961873246,-500.0,9.993e-05,2]
[404205239,1769961873269,-500.0,9.993e-05,2]
[404205240,1769961873290,-500.0,9.993e-05,2]
[404205241,1769961873311,-500.0,9.993e-05,2]
[404205242,1769961873333,-500.0,9.993e-05,2]
[404205243,1769961873355,-500.0,9.993e-05,2]
[404205244,1769961873377,-500.0,9.993e-05,2]
[404205245,1769961873397,-500.0,9.993e-05,2]
[404205246,1769961873419,-500.0,9.993e-05,2]
[404205247,1769961873443,-500.0,9.993e-05,2]
[404205248,1769961873464,-500.0,9.993e-05,2]
[404205249,1769961873485,-500.0,9.993e-05,2]
[404205250,1769961873506,-537.07122255,9.993e-05,2]
[404205251,1769961873527,-500.0,9.993e-05,2]
[404205252,1769961873548,-500.0,9.993e-05,2]
[404205253,1769961873571,-500.0,9.993e-05,2]
[404205254,1769961873598,-368.50182161,9.993e-05,2]
[404205255,1769961873620,-500.0,9.993e-05,2]
[404205256,1769961873643,-500.0,9.993e-05,2]
[404205257,1769961873666,-500.0,9.993e-05,2]
[404205258,1769961873689,-500.0,9.993e-05,2]
[404205259,1769961873711,-500.0,9.993e-05,2]
[404205260,1769961873732,-500.0,9.993e-05,2]
[404205261,1769961873752,-500.0,9.993e-05,2]
[404205262,1769961873774,-500.0,9.993e-05,2]
[404205263,1769961873794,-500.0,9.993e-05,2]
[404205264,1769961873815,-500.0,9.993e-05,2]
[404205265,1769961873839,-500.0,9.993e-05,2]
[404205266,1769961873860,-500.0,9.993e-05,2]
[404205267,1769961873881,-500.0,9.993e-05,2]
[404205268,1769961873902,-500.0,9.993e-05,2]
[404205269,1769961873924,-500.0,9.993e-05,2]
[404205270,1769961873943,-500.0,9.993e-05,2]
[404205271,1769961873965,-304.22148063,9.993e-05,2]
[404205272,1769961873985,-500.0,9.993e-05,2]
[404205273,1769961874007,-312.48080699,9.993e-05,2]
[404205274,1769961874027,-500.0,9.993e-05,2]
[404205275,1769961874049,-500.0,9.993e-05,2]
[404205276,1769961874071,-500.0,9.993e-05,2]
[404205277,1769961874090,-500.0,9.993e-05,2]
[404205278,1769961874112,-500.0,9.993e-05,2]
[404205279,1769961874133,-500.0,9.993e-05,2]
[404205280,1769961874155,-500.0,9.993e-05,2]
[404205281,1769961874176,-500.0,9.993e-05,2]
[404205282,1769961874197,-500.0,9.993e-05,2]
[404205283,1769961874218,-500.0,9.993e-05,2]
[404205284,1769961874239,-500.0,9.993e-05,2]
[404205285,1769961874260,-500.0,9.993e-05,2]
[404205286,1769961874282,-500.0,9.993e-05,2]
[404205287,1769961874303,-500.0,9.993e-05,2]
[404205288,1769961874325,-500.0,9.993e-05,2]
[404205289,1769961874344,-500.0,9.993e-05,2]
[404205290,1769961874364,-500.0,9.993e-05,2]
[404205291,1769961874387,-500.0,9.993e-05,2]
[404205292,1769961874407,-160.94091627,9.993e-05,2]
[404205293,1769961874430,-500.0,9.993e-05,2]
[404205294,1769961874451,-500.0,9.993e-05,2]
[404205295,1769961874473,-500.0,9.993e-05,2]
[404205296,1769961874494,-500.0,9.993e-05,2]
[404205297,1769961874516,-500.0,9.993e-05,2]
[404205298,1769961874536,-500.0,9.993e-05,2]
[404205299,1769961874558,-500.0,9.993e-05,2]
[404205300,1769961874582,-500.0,9.993e-05,2]
[404205301,1769961874605,-500.0,9.993e-05,2]
[404205302,1769961874627,-500.0,9.993e-05,2]
[404205303,1769961874648,-500.0,9.993e-05,2]
[404205304,1769961874670,-500.0,9.993e-05,2]
[404205305,1769961874694,-500.0,9.993e-05,2]
[404205306,1769961874787,-500.0,9.993e-05,2]
[404205307,1769961874810,-500.0,9.993e-05,2]
[404205308,1769961874832,-500.0,9.993e-05,2]
[404205309,1769961874852,-500.0,9.993e-05,2]
[404205310,1769961874872,-500.0,9.993e-05,2]
[404205311,1769961874894,-500.0,9.993e-05,2]
[404205312,1769961874916,-500.0,9.993e-05,2]
[404205313,1769961874936,-500.0,9.993e-05,2]
[404205314,1769961874959,-500.0,9.993e-05,2]
[404205315,1769961874980,-500.0,9.993e-05,2]
[404205316,1769961875001,-500.0,9.993e-05,2]
[404205317,1769961875022,-500.0,9.993e-05,2]
[404205318,1769961875044,-500.0,9.993e-05,2]
[404205319,1769961875068,-500.0,9.993e-05,2]
[404205320,1769961875089,-500.0,9.993e-05,2]
[404205321,1769961875112,-500.0,9.993e-05,2]
[404205322,1769961875134,-500.0,9.993e-05,2]
[404205323,1769961875155,-500.0,9.993e-05,2]
[404205324,1769961875178,-500.0,9.993e-05,2]
[404205325,1769961875200,-500.0,9.993e-05,2]
[404205326,1769961875221,-400.0,9.993e-05,2]
[404205327,1769961875245,-500.0,9.993e-05,2]
[404205328,1769961875266,-500.0,9.993e-05,2]
[404205329,1769961875288,-500.0,9.993e-05,2]
[404205330,1769961875310,-500.0,9.993e-05,2]
[404205331,1769961875333,-500.0,9.993e-05,2]
[404205332,1769961875354,-500.0,9.993e-05,2]
[404205333,1769961875376,-500.0,9.993e-05,2]
[404205334,1769961875398,-500.0,9.993e-05,2]
[404205335,1769961875420,-500.0,9.993e-05,2]
[404205336,1769961875441,-500.0,9.993e-05,2]
[404205337,1769961875463,-500.0,9.993e-05,2]
[404205338,1769961875486,-500.0,9.993e-05,2]
[404205339,1769961875508,-500.0,9.993e-05,2]
[404205340,1769961875530,-500.0,9.993e-05,2]
[404205341,1769961875552,-500.0,9.993e-05,2]
[404205342,1769961875578,-500.0,9.993e-05,2]
[404205343,1769961875600,-500.0,9.993e-05,2]
[404205344,1769961875624,-500.0,9.993e-05,2]
[404205345,1769961875646,-500.0,9.993e-05,2]
[404205346,1769961875669,-500.0,9.993e-05,2]
[404205347,1769961875693,-500.0,9.993e-05,2]
[404205348,1769961875714,-500.0,9.993e-05,2]
[404205349,1769961875737,-500.0,9.993e-05,2]
[404205350,1769961875761,-500.0,9.993e-05,2]
[404205351,1769961875784,-500.0,9.993e-05,2]
[404205352,1769961875806,-548.41704844,9.993e-05,2]
[404205353,1769961875831,-500.0,9.993e-05,2]
[404205354,1769961875853,-500.0,9.993e-05,2]
[404205355,1769961875874,-500.0,9.993e-05,2]
[404205356,1769961875896,-500.0,9.993e-05,2]
[404205357,1769961875918,-500.0,9.993e-05,2]
[404205358,1769961875940,-500.0,9.993e-05,2]
[404205359,1769961875961,-500.0,9.993e-05,2]
[404205360,1769961875983,-500.0,9.993e-05,2]
[404205361,1769961876006,-500.0,9.993e-05,2]
[404205362,1769961876028,-500.0,9.993e-05,2]
[404205363,1769961876049,-500.0,9.993e-05,2]
[404205364,1769961876074,-500.0,9.993e-05,2]
[404205365,1769961876095,-500.0,9.993e-05,2]
[404205366,1769961876118,-500.0,9.993e-05,2]
[404205367,1769961876139,-500.0,9.993e-05,2]
[404205368,1769961876161,-500.0,9.993e-05,2]
[404205369,1769961876182,-500.0,9.993e-05,2]
[404205370,1769961876204,-500.0,9.993e-05,2]
[404205371,1769961876226,-500.0,9.993e-05,2]
[404205372,1769961876248,-500.0,9.993e-05,2]
[404205373,1769961876270,-500.0,9.993e-05,2]
[404205374,1769961876292,-500.0,9.993e-05,2]
[404205375,1769961876315,-500.0,9.993e-05,2]
[404205376,1769961876342,-500.0,9.993e-05,2]
[404205377,1769961876363,-500.0,9.993e-05,2]
[404205378,1769961876385,-500.0,9.993e-05,2]
[404205379,1769961876407,-500.0,9.993e-05,2]
[404205380,1769961876429,-500.0,9.993e-05,2]
[404205381,1769961876451,-500.0,9.993e-05,2]
[404205382,1769961876472,-500.0,9.993e-05,2]
[404205383,1769961876493,-500.0,9.993e-05,2]
[404205384,1769961876514,-500.0,9.993e-05,2]
[404205385,1769961876536,-500.0,9.993e-05,2]
[404205386,1769961876557,-230.89120147,9.993e-05,2]
[404205387,1769961876580,-500.0,9.993e-05,2]
[404205388,1769961876603,-500.0,9.993e-05,2]
[404205389,1769961876625,-500.0,9.993e-05,2]
[404205390,1769961876646,-500.0,9.993e-05,2]
[404205391,1769961876673,-500.0,9.993e-05,2]
[404205392,1769961876696,-500.0,9.993e-05,2]
[404205393,1769961876718,-500.0,9.993e-05,2]
[404205394,1769961876741,-500.0,9.993e-05,2]
[404205395,1769961876764,-500.0,9.993e-05,2]
[404205396,1769961876789,-500.0,9.993e-05,2]
[404205397,1769961876812,-500.0,9.993e-05,2]
[404205398,1769961876838,-500.0,9.993e-05,2]
[404205399,1769961876859,-300.0,9.994e-05,2]
[404205400,1769961876879,-46805.19112417,0.0001,2]
[404205401,1769961876973,-150.22784341,0.00010118,2]
[404205402,1769961876997,-600.0,0.00010194,2]
[404205403,1769961877018,-223.0,0.00010991,2]
[404205404,1769961877038,-151.0,0.00011,2]
[404205405,1769961877060,-720.0,0.00011213,2]
[404205406,1769961877085,-177.0,0.00011837,2]
[404205407,1769961877106,-261.41,0.00012329,2]
[404205408,1769961877128,-864.0,0.00012335,2]
[404205409,1769961877149,-2722.67892667,0.000129,2]
[404205410,1769961877169,-151.0,0.000132,2]
[404205411,1769961877190,-287.47433438,0.00013273,2]
[404205412,1769961877210,-212.52642482,0.00013273,2]
[404205413,1769961877230,-500.0,0.00013273,2]
[404205414,1769961877252,-833.34475011,0.00013568,2]
[404205417,1769962118710,-237.9117782,9.598e-05,2]
[404205418,1769962121864,-245.1,9.502e-05,2]
[404205419,1769962126741,-458.64,9.502e-05,2]
[404205420,1769962129326,-229.4264115,9.502e-05,2]
[404205421,1769962134368,-160.9282218,9.502e-05,2]
[404205422,1769962145103,-3905.9053667,9.502e-05,2]
[404205423,1769962145123,-4762.0882218,9.598e-05,2]
[404205424,1769962145234,-300.0,9.694e-05,2]
[404205425,1769962145254,-5000.0,9.695e-05,2]
[404205426,1769962145275,-500.0,9.992e-05,2]
[404205427,1769962145295,-469.59671877,9.992e-05,2]
[404205428,1769962145324,-30.40328123,9.992e-05,2]
[404205429,1769962145344,-462.32676847,9.992e-05,2]
[404205430,1769962145364,-300.0,0.00010663,2]
[404205464,1769962231745,-4628.02115072,0.0001161,2]
[404205466,1769962231757,-371.97884928,0.0001161,2]
[404205468,1769962231768,-583.0,0.0001161,2]
[404205470,1769962231778,-150.0,0.00011669,2]
[404205472,1769962231787,-680.20115072,0.00011727,2]
[404205474,1769962231798,-1593.96474608,0.00011727,2]
[404205575,1769962238327,-488.57536421,0.0001161,2]
[404205576,1769962238341,-4511.42463579,0.0001161,2]
[404205577,1769962238352,-1342.85704674,0.00011727,2]
[404205578,1769962238365,-1382.97705646,0.00011727,2]
[404205579,1769962238376,-2536.29761638,0.00012057,2]
[404205580,1769962238386,-251.34709379,0.00012057,2]
[404205581,1769962238398,-4311.08187091,0.00012093,2]
[404205582,1769962238408,-184.57207436,0.00012093,2]
[404205583,1769962238419,-500.0,0.00013273,2]
[404205584,1769962238429,-177.0,0.00013669,2]
[404205585,1769962238439,-500.0,0.00013699,2]
[404205586,1769962238450,-452.4536455,0.00014072,2]
[404205587,1769962238460,-1000.0,0.00014247,2]
[404205588,1769962238471,-1198.0,0.00014795,2]
[404205589,1769962238481,-600.0,0.00014893,2]
[404205590,1769962238491,-332.22973384,0.00014956,2]
[404205591,1769962238501,-166.809222,0.00015068,2]
[404205592,1769962238511,-2071.287002,0.00015259,2]
[404205593,1769962238522,-151.0,0.000153,2]
[404205594,1769962238532,-204.0,0.00015669,2]
[404205595,1769962238542,-298.72291149,0.00015931,2]
[404205596,1769962238552,-670.51587549,0.00016423,2]
[404205597,1769962238561,-162.70762637,0.00016423,2]
[404205598,1769962238571,-292.87372746,0.00016423,2]
[404205599,1769962238582,-180.031,0.00017471,2]
[404205600,1769962238591,-151.0,0.000175,2]
[404205601,1769962238601,-231.0,0.00017669,2]
[404205602,1769962238611,-150.0,0.00017716,3]
[404205603,1769962238620,-150.0,0.00017853,3]
[404205604,1769962238630,-3328.87771227,0.0001789,2]
[404205605,1769962238639,-2280.28015564,0.000179,2]
[404205606,1769962238650,-250.0,0.0001799,3]
[404205607,1769962238660,-356.9,0.0001799,3]
[404205608,1769962238670,-178.45,0.0001799,3]
[404205609,1769962238680,-535.38,0.0001799,3]
[404205610,1769962238693,-218.66,0.0001799,3]
[404205611,1769962238704,-443.4,0.0001799,3]
[404205612,1769962238715,-362.97,0.0001799,3]
[404205613,1769962238724,-413.47,0.0001799,3]
[404205614,1769962238735,-312.19,0.0001799,3]
[404205615,1769962238745,-156.09,0.0001799,3]
[404205616,1769962238754,-206.93,0.0001799,3]
[404205617,1769962238766,-620.82,0.0001799,3]
[404205618,1769962238775,-244.1,0.0001799,3]
[404205619,1769962238785,-496.34,0.0001799,3]
[404205620,1769962238795,-394.42,0.0001799,3]
[404205621,1769962238805,-199.98834344,0.00017999,2]
[404205622,1769962238815,-500.41352171,0.00017999,2]
[404205623,1769962238826,-338.56541897,0.00017999,2]
[404205624,1769962238837,-520.78439888,0.00017999,2]
[404205625,1769962238847,-500.0,0.00017999,2]
[404205626,1769962238857,-170.7856914,0.00017999,2]
[404205627,1769962238868,-500.0,0.00017999,2]
[404205628,1769962238878,-500.0,0.00017999,2]
[404205629,1769962238888,-500.0,0.00017999,2]
[404205630,1769962238899,-500.0,0.00017999,2]
[404205631,1769962238909,-286.08978554,0.00017999,2]
[404205632,1769962238920,-500.0,0.00017999,2]
[404205633,1769962238930,-500.0,0.00017999,2]
[404205634,1769962238940,-500.0,0.00017999,2]
[404205635,1769962238951,-474.27798018,0.00017999,2]
[404205636,1769962238961,-500.0,0.00017999,2]
[404205637,1769962238972,-500.0,0.00017999,2]
[404205638,1769962238982,-500.0,0.00017999,2]
[404205639,1769962238992,-500.0,0.00017999,2]
[404205640,1769962239003,-500.0,0.00017999,2]
[404205641,1769962239014,-500.0,0.00017999,2]
[404205642,1769962239024,-523.61029059,0.00017999,2]
[404205643,1769962239034,-10756.57470199,0.00018,2]
[404205644,1769962239069,-375.29864835,0.00018,2]
[404205657,1769962240506,-509.31554431,0.00018,2]
[404205872,1769962242530,-364.81999598,0.00018,2]
[404205922,1769962243005,-3e-08,0.00018,2]
[404206034,1769962246202,-1437.1938843,0.00018,2]
[404206035,1769962246214,-1411.95357189,0.00018,2]
[404206046,1769962249373,-20233.26818963,0.00018,2]
[404206047,1769962249385,-5447.88681035,0.00018,2]
[404206051,1769962355622,204.73960405,0.00037627,120]
[404206052,1769962355990,204.73960405,0.00037627,120]
[404206057,1769962483986,194.137785,0.00037627,120]
[404206058,1769962518558,1325.66212249,0.00037627,120]
[404206059,1769962885630,313.56,0.00037628,120]
[404206061,1769962998155,1980.0,0.00037628,30]
[404206070,1769963232121,-182.13973474,0.00014633,2]
[404206071,1769963232140,-157.50721693,0.00014633,2]
[404206072,1769963232162,-93.97632584,0.00014859,2]
[404206074,1769963248136,-56.02367416,0.00014859,2]
[404206075,1769963248159,-226.82254275,0.00014994,2]
[404206077,1769963296002,4524.68774435,0.00037628,120]
[404206145,1769963432022,-557.26,0.00014194,2]
[404206147,1769963432039,-65.74,0.00014194,2]
[404206149,1769963432049,-182.13973473,0.00014194,2]
[404206151,1769963432059,-168.38916136,0.00014684,2]
[404206153,1769963432068,-622.56830195,0.00014915,2]
[404206155,1769963432079,-47.63678725,0.00014915,2]
[404206156,1769963432092,-980.10603313,0.00014994,2]
[404206158,1769963432102,-112.63997291,0.00015399,2]
[404206160,1769963432114,-187.36002709,0.00015399,2]
[404206162,1769963432123,-537.86317483,0.000154,2]
[404206275,1769963437982,-5085.58327953,0.000154,2]
[404206469,1769963440298,-493.24219282,0.000154,2]
[404206628,1769963445927,-43539.95584966,0.000154,2]
[404206632,1769963446282,-4114.89513098,0.000154,2]
[404206633,1769963446292,-166.0,0.00015735,2]
[404206634,1769963446301,-341.75750597,0.00016177,2]
[404206635,1769963446310,-352.27942791,0.00016347,2]
[404206637,1769963446320,-257.69087041,0.00016347,2]
[404206638,1769963446329,-384.17472255,0.0001639,2]
[404206639,1769963446339,-5681.71076354,0.00016807,2]
[404206640,1769963446349,-10000.0,0.00016807,2]
[404206641,1769963446358,-150.33922728,0.00016807,2]
[404206642,1769963446369,-177.0,0.00016859,2]
[404206643,1769963446378,-158.08855488,0.00017203,2]
[404206644,1769963446387,-599.88960557,0.00017219,2]
[404206645,1769963446397,-1079.80129003,0.00017219,2]
[404206646,1769963446406,-4958.69961124,0.0001747,2]
[404206647,1769963446415,-164.305,0.00017716,2]
[404206648,1769963446424,-200.0,0.0001789,2]
[404206649,1769963446433,-1921.4077039,0.000179,2]
[404206650,1769963446443,-181.584,0.0001799,2]
[404206651,1769963446452,-883.02,0.0001799,3]
[404206652,1769963446462,-441.51,0.0001799,3]
[404206653,1769963446471,-220.75,0.0001799,3]
[404206654,1769963446480,-662.28,0.0001799,3]
[404206655,1769963446490,-447.06781007,0.00017998,2]
[404206656,1769963446499,-254.00997617,0.00017998,2]
[404206657,1769963446509,-227.40634869,0.00017998,2]
[404206658,1769963446518,-303.78921347,0.00017999,2]
[404206659,1769963446528,-434.50288375,0.00017999,2]
[404206660,1769963446537,-676027.29464085,0.00018,2]
[404206661,1769963446546,-6110.43618082,0.00018,2]
[404206662,1769963446555,-487.0,0.00018,2]
[404206663,1769963446564,-487.0,0.00018,2]
[404206664,1769963446574,-487.0,0.00018,2]
[404206665,1769963446584,-487.0,0.00018,2]
[404206666,1769963446593,-487.0,0.00018,2]
[404206667,1769963446604,-487.0,0.00018,2]
[404206668,1769963446613,-487.0,0.00018,2]
[404206669,1769963446622,-487.0,0.00018,2]
[404206670,1769963446631,-496.29,0.00018,2]
[404206671,1769963446641,-176.70065425,0.00018109,2]
[404206672,1769963446652,-600.0,0.00018359,2]
[404206673,1769963446661,-691.51450059,0.00018375,2]
[404206674,1769963446672,-204.0,0.00018859,2]
[404206675,1769963446682,-160.66623457,0.00019244,2]
[404206676,1769963446691,-1766.04,0.0001936,3]
[404206677,1769963446701,-883.02,0.0001936,3]
[404206678,1769963446710,-441.5,0.0001936,3]
[404206679,1769963446719,-4997.95,0.000194,2]
[404206680,1769963446729,-1041.66666667,0.00019416,2]
[404206681,1769963446738,-740.74221401,0.00019417,2]
[404206682,1769963446747,-521.31,0.000195,2]
[404206683,1769963446756,-151.0,0.000197,2]
[404206684,1769963446765,-3669.80399773,0.00019889,2]
[404206685,1769963446775,-150.0,0.00019921,2]
[404206686,1769963446784,-150.0,0.00019921,2]
[404206687,1769963446793,-150.0,0.00020058,2]
[404206688,1769963446802,-250.0,0.00020058,2]
[404206689,1769963446811,-631.7218653,0.00020157,2]
[404206690,1769963446820,-150.0,0.00020195,2]
[404206691,1769963446829,-720.0,0.00020195,2]
[404206692,1769963446838,-150.0,0.00020332,2]
[404206693,1769963446848,-280.3595717,0.00020469,2]
[404206694,1769963446857,-284.007688,0.00020548,2]
[404206695,1769963446866,-231.0,0.00020859,2]
[404206696,1769963446875,-706.09581437,0.00021218,2]
[404206697,1769963446884,-214.17683411,0.00021342,5]
[404206698,1769963446894,-151.0,0.000219,3]
[404206699,1769963446903,-1000.3029293,0.00022,2]
[404206700,1769963446912,-150.0,0.00022096,2]
[404206701,1769963446921,-199.724,0.00022096,2]
[404206702,1769963446930,-153.83,0.000221,7]
[404206703,1769963446939,-864.0,0.00022214,10]
[404206704,1769963446948,-1921.40770386,0.0002251,2]
[404206705,1769963446957,-1369.0,0.00022569,2]
[404206706,1769963446966,-630.0,0.00022569,2]
[404206707,1769963446975,-2151.0,0.00022569,2]
[404206708,1769963446984,-279.203,0.00022569,2]
[404206709,1769963446993,-179.0,0.00022569,2]
[404206710,1769963447002,-258.0,0.00022859,2]
[404206711,1769963447013,-2241.0,0.00023,35]
[404206712,1769963447022,-242.95765006,0.0002329,5]
[404206713,1769963447034,-231.0,0.00023726,11]
[404206714,1769963447047,-505.70048655,0.00023965,5]
[404206715,1769963447057,-151.0,0.00024,6]
[404206716,1769963447066,-1000.0,0.00024436,10]
[404206717,1769963447075,-514.4405134,0.00024469,5]
[404206718,1769963447084,-166.0,0.00024543,3]
[404206719,1769963447094,-180.61083864,0.00024543,3]
[404206720,1769963447106,-285.0,0.00024859,2]
[404206721,1769963447116,-150.0,0.00025096,2]
[404206722,1769963447211,-153.0,0.00025098,3]
[404206723,1769963447224,-151.0,0.000255,10]
[404206724,1769963447235,-1278.276,0.00025569,2]
[404206725,1769963447245,-179.0,0.00025569,2]
[404206726,1769963447254,-151.0,0.000262,11]
[404206727,1769963447263,-312.0,0.00026859,2]
[404206728,1769963447272,-1000.0,0.00026879,30]
[404206729,1769963447282,-244.0,0.00026879,30]
[404206730,1769963447292,-151.0,0.00027,13]
[404206731,1769963447302,-1921.40770386,0.0002712,2]
[404206732,1769963447312,-740.74221401,0.00028,7]
[404206733,1769963447322,-740.74221401,0.00028,7]
[404206734,1769963447331,-740.74221401,0.00028,3]
[404206735,1769963447341,-150.0,0.00028096,2]
[404206736,1769963447352,-151.0,0.000284,18]
[404206737,1769963447362,-151.0,0.000285,16]
[404206738,1769963447371,-179.0,0.00028569,2]
[404206739,1769963447380,-339.0,0.00028859,2]
[404206740,1769963447390,-740.74221401,0.00029,10]
[404206741,1769963447400,-740.74221401,0.00029,10]
[404206742,1769963447409,-150.33922728,0.00029197,2]
[404206743,1769963447418,-168.0,0.00029378,2]
[404206744,1769963447427,-1000.0,0.00029567,30]
[404206745,1769963447436,-492.0,0.00029567,30]
[404206746,1769963447446,-150.0,0.00029969,30]
[404206747,1769963447455,-10000.0,0.0003,60]
[404206748,1769963447464,-151.0,0.0003,11]
[404206749,1769963447474,-179.87408814,0.00030014,4]
[404206750,1769963447484,-160.0,0.00030301,39]
[404206751,1769963447493,-151.0,0.000305,10]
[404206752,1769963447502,-366.0,0.00030859,2]
[404206753,1769963447512,-565.0,0.00031,2]
[404206754,1769963447521,-151.0,0.000315,17]
[404206755,1769963447531,-179.0,0.00031569,2]
[404206756,1769963447541,-1921.40770386,0.0003173,2]
[404206757,1769963447551,-2000.0,0.0003175,7]
[404206758,1769963447561,-150.0,0.00031798,30]
[404206759,1769963447570,-500.0,0.00032,2]
[404206760,1769963447580,-5000.0,0.00032,3]
[404206761,1769963447589,-740.74221401,0.00032,3]
[404206762,1769963447599,-710.0,0.00032118,3]
[404206763,1769963447608,-264.4034,0.0003222,30]
[404206764,1769963447618,-167.0,0.00032314,11]
[404206765,1769963447628,-1000.0,0.00032524,30]
[404206766,1769963447637,-791.0,0.00032524,30]
[404206767,1769963447647,-999.0,0.00032602,120]
[404206768,1769963447657,-757.738879,0.00032646,30]
[404206769,1769963447666,-43938.46863638,0.0003267,2]
[404206770,1769963447675,-710.0,0.00032712,11]
[404206771,1769963447684,-710.0,0.00032758,11]
[404206772,1769963447695,-5000.0,0.000328,3]
[404206773,1769963447705,-393.0,0.00032859,2]
[404206774,1769963447715,-3715.16,0.00032877,10]
[404206775,1769963447725,-577.7448637,0.00032883,2]
[404206776,1769963447734,-78332.86339025,0.00033,4]
[404206777,1769963447748,-1041.06313339,0.00033,4]
[404206778,1769963447759,-383.71407802,0.00033,4]
[404206779,1769963447770,-346.38830132,0.00033,4]
[404206780,1769963555614,10000.0,0.0003013,120]
[404206781,1769963734274,245.0,0.00028689,120]
[404206783,1769964055451,1000.0,0.00030137,120]